bitfinex-derivatives/quotes_BTCF0:USTF0_20260131
["timestamp","ask_amount","ask_price","bid_price","bid_amount"]
[1769889184699,0.29706149,77861.0,77838.0,0.09256]
[1769889184894,0.29706149,77859.0,77822.0,0.48484317]
[1769889185094,0.09256,77863.0,77822.0,0.48484317]
[1769889185295,0.29706149,77896.0,77837.0,0.00892385]
[1769889185503,0.44208574,77922.0,77837.0,0.00892385]
[1769889185504,5.6e-07,77887.0,77886.0,0.012857]
[1769889185693,0.012851,77926.0,77892.0,0.01406167]
[1769889185896,0.09256,77930.0,77902.0,0.012855]
[1769889186197,0.29531277,77921.0,77886.0,0.09256]
[1769889186504,0.09256,77930.0,77903.0,0.012854]
[1769889186896,0.12836393,77928.0,77903.0,0.012854]
[1769889187201,0.29531277,77934.0,77906.0,0.012854]
[1769889187401,0.12836393,77929.0,77906.0,0.012854]
[1769889187702,0.38787277,77934.0,77907.0,0.012854]
[1769889187905,0.12833675,77933.0,77907.0,0.012854]
[1769889188103,0.41787671,77933.0,77907.0,0.012854]
[1769889188402,0.28953996,77933.0,77907.0,0.012854]
[1769889188602,0.12833675,77932.0,77907.0,0.012854]
[1769889188799,0.28953996,77931.0,77907.0,0.012854]
[1769889188992,0.28953996,77931.0,77911.0,0.012853]
[1769889189197,0.28953996,77931.0,77907.0,0.012854]
[1769889189599,0.12833675,77930.0,77907.0,0.012854]
[1769889190898,0.41787671,77930.0,77903.0,0.012855]
[1769889191302,0.28953996,77930.0,77903.0,0.012855]
[1769889191604,0.28953996,77928.0,77895.0,0.012856]
[1769889191906,0.28953996,77913.0,77870.0,0.03585057]
[1769889192106,0.30239296,77911.0,77870.0,0.03585057]
[1769889192304,0.28953996,77907.0,77879.0,0.012859]
[1769889192495,0.43112,77910.0,77879.0,0.012859]
[1769889192496,0.28953996,77905.0,77879.0,0.012859]
[1769889192702,0.28953996,77905.0,77885.0,0.012858]
[1769889192905,0.28953996,77905.0,77870.0,0.03585057]
[1769889193103,0.28953996,77905.0,77879.0,0.012859]
[1769889193305,0.12838124,77904.0,77879.0,0.012859]
[1769889193505,0.28953996,77903.0,77879.0,0.012859]
[1769889193906,0.28953996,77903.0,77875.0,0.012859]
[1769889194101,0.12838371,77902.0,77875.0,0.012859]
[1769889194302,0.41792367,77902.0,77877.0,0.012859]
[1769889194506,0.28953996,77924.0,77891.0,0.012856]
[1769889194812,0.128387,77909.0,77893.0,0.012856]
[1769889195010,0.128387,77909.0,77884.0,0.00946161]
[1769889195310,0.001,77930.0,77886.0,0.012857]
[1769889195502,0.09256,77929.0,77882.0,0.09256]
[1769889195708,0.12837547,77929.0,77918.0,0.012852]
[1769889195899,0.001,77930.0,77921.0,0.012852]
[1769889196104,0.001,77930.0,77907.0,0.09256]
[1769889196410,0.001,77930.0,77921.0,0.012852]
[1769889196610,0.09256,77938.0,77923.0,0.012851]
[1769889196805,0.09256,77938.0,77908.0,0.012854]
[1769889197002,0.09256,77938.0,77908.0,0.01089674]
[1769889197204,0.12833922,77937.0,77908.0,0.01089674]
[1769889197606,0.12833922,77937.0,77916.0,0.012852]
[1769889197909,0.12833922,77937.0,77907.0,0.09256]
[1769889199003,0.29749277,77936.0,77907.0,0.09256]
[1769889199501,0.29749277,77936.0,77894.0,0.012856]
[1769889199707,0.29759277,77934.0,77904.0,0.012854]
[1769889199903,0.29759277,77932.0,77904.0,0.012854]
[1769889200113,0.31044277,77932.0,77890.0,0.09252]
[1769889200414,0.31044477,77922.0,77890.0,0.09252]
[1769889200810,0.29759277,77918.0,77890.0,0.105377]
[1769889201001,0.29759277,77917.0,77890.0,0.105377]
[1769889201207,0.43104,77916.0,77890.0,0.105377]
[1769889201404,0.43104,77916.0,77893.0,0.012856]
[1769889201608,0.12835158,77915.0,77893.0,0.012856]
[1769889202004,0.12835158,77915.0,77898.0,0.012855]
[1769889202209,0.12835158,77915.0,77890.0,0.09252]
[1769889202410,0.12835158,77915.0,77878.0,0.02145806]
[1769889202710,0.30998664,77914.0,77885.0,0.012858]
[1769889202921,0.29713364,77897.0,77859.0,0.09252]
[1769889203118,0.012856,77894.0,77864.0,0.012861]
[1769889203311,0.29713364,77889.0,77862.0,0.012861]
[1769889203507,0.29713364,77887.0,77859.0,0.09252]
[1769889203715,0.09252,77893.0,77841.0,0.017865]
[1769889203716,0.29657681,77879.0,77850.0,0.012863]
[1769889203906,0.29657681,77870.0,77843.0,0.09252]
[1769889204110,0.30943781,77865.0,77843.0,0.09252]
[1769889204312,0.30943781,77863.0,77837.0,0.00010835]
[1769889204512,0.29657681,77885.0,77847.0,0.01026955]
[1769889204712,0.29657681,77885.0,77839.0,0.012865]
[1769889204713,0.29657681,77885.0,77850.0,0.01026955]
[1769889204912,0.12845215,77882.0,77850.0,0.01026955]
[1769889205211,0.09252,77886.0,77850.0,0.01026955]
[1769889205519,0.12845215,77884.0,77850.0,0.01026955]
[1769889205709,0.012858,77883.0,77852.0,0.012863]
[1769889205910,0.01286,77871.0,77842.0,0.105385]
[1769889206109,0.3,77862.0,77837.0,0.00010835]
[1769889206309,0.3,77857.0,77820.0,0.005]
[1769889206518,0.3,77855.0,77820.0,0.005]
[1769889206712,0.012864,77847.0,77816.0,0.012869]
[1769889206913,0.012864,77845.0,77816.0,0.012869]
[1769889207113,0.012865,77842.0,77813.0,0.012869]
[1769889207421,0.012866,77836.0,77812.0,0.09256]
[1769889208017,0.33866835,77841.0,77812.0,0.09256]
[1769889208219,0.33866835,77841.0,77816.0,0.001]
[1769889208414,0.00010835,77841.0,77824.0,0.012868]
[1769889208624,0.00010835,77841.0,77821.0,0.012868]
[1769889209210,0.00010835,77841.0,77812.0,0.09356]
[1769889209415,0.01286,77872.0,77838.0,0.012865]
[1769889209620,0.10542,77872.0,77841.0,0.012865]
[1769889209918,0.12849093,77866.0,77839.0,0.012865]
[1769889210120,0.3,77870.0,77835.0,0.09256]
[1769889210425,0.012863,77854.0,77821.0,0.105428]
[1769889210619,0.30010835,77871.0,77821.0,0.09356]
[1769889210816,0.30010835,77871.0,77833.0,0.012866]
[1769889210817,0.012861,77865.0,77833.0,0.012866]
[1769889211017,0.12844802,77864.0,77833.0,0.012866]
[1769889211323,0.30010835,77864.0,77821.0,0.09356]
[1769889211525,0.3,77863.0,77821.0,0.09256]
[1769889211721,0.3,77858.0,77821.0,0.105428]
[1769889212024,0.012863,77853.0,77824.0,0.012868]
[1769889212226,0.09256,77854.0,77821.0,0.09256]
[1769889212523,0.00010835,77866.0,77840.0,0.012865]
[1769889212722,0.00010835,77866.0,77839.0,0.012865]
[1769889212922,0.12858112,77866.0,77839.0,0.012865]
[1769889213522,0.012862,77861.0,77835.0,0.09256]
[1769889213727,0.312862,77856.0,77835.0,0.09256]
[1769889214027,0.3,77851.0,77821.0,0.09256]
[1769889214228,0.012864,77847.0,77821.0,0.09256]
[1769889214829,0.00010835,77846.0,77821.0,0.09256]
[1769889215222,0.012864,77846.0,77821.0,0.09256]
[1769889215523,0.12847855,77845.0,77821.0,0.09256]
[1769889216723,0.12847855,77845.0,77821.0,0.105428]
[1769889216929,0.12847855,77845.0,77821.0,0.09256]
[1769889217431,0.012865,77841.0,77821.0,0.09256]
[1769889217634,0.14134255,77845.0,77821.0,0.09256]
[1769889217827,0.012865,77842.0,77821.0,0.09256]
[1769889218126,0.1284802,77844.0,77821.0,0.09256]
[1769889218326,0.01297235,77846.0,77821.0,0.09256]
[1769889218633,0.1284802,77845.0,77821.0,0.09256]
[1769889219233,0.1284802,77845.0,77822.0,0.012868]
[1769889219433,0.3,77844.0,77821.0,0.09256]
[1769889219634,0.312865,77843.0,77821.0,0.09256]
[1769889219834,0.01297335,77842.0,77821.0,0.09256]
[1769889220137,0.12858773,77842.0,77821.0,0.09256]
[1769889220330,0.012865,77839.0,77817.0,0.012869]
[1769889220731,0.00010835,77838.0,77817.0,0.012869]
[1769889221030,0.3,77837.0,77799.0,0.01296159]
[1769889221236,0.312866,77832.0,77810.0,0.01287]
[1769889221437,0.312867,77830.0,77810.0,0.01287]
[1769889221728,0.312867,77828.0,77804.0,0.012871]
[1769889221934,0.012867,77826.0,77804.0,0.012871]
[1769889222131,0.012868,77824.0,77793.0,0.012873]
[1769889222434,0.012868,77824.0,77791.0,0.01298619]
[1769889222737,0.12850001,77823.0,77790.0,0.0926]
[1769889222931,0.012868,77822.0,77790.0,0.0926]
[1769889223136,0.012869,77814.0,77790.0,0.0926]
[1769889223336,0.105469,77814.0,77790.0,0.0926]
[1769889223536,0.12862901,77813.0,77790.0,0.0926]
[1769889223740,0.12862901,77813.0,77791.0,0.012873]
[1769889224030,0.3,77844.0,77790.0,0.0926]
[1769889224235,0.001,77828.0,77815.0,0.012869]
[1769889224625,0.001,77828.0,77808.0,0.01287]
[1769889225135,0.312865,77841.0,77811.0,0.01287]
[1769889225337,0.00010835,77849.0,77824.0,0.012868]
[1769889225533,0.12860754,77849.0,77824.0,0.012868]
[1769889225733,0.00010835,77849.0,77824.0,0.012868]
[1769889225937,0.012865,77843.0,77807.0,0.0926]
[1769889226136,0.012865,77843.0,77814.0,0.012869]
[1769889226340,0.00010835,77842.0,77814.0,0.012869]
[1769889227028,0.14135346,77841.0,77814.0,0.012869]
[1769889227229,0.3,77840.0,77807.0,0.0926]
[1769889227840,0.012867,77831.0,77807.0,0.0926]
[1769889228236,0.00010835,77830.0,77807.0,0.0926]
[1769889230039,0.012867,77828.0,77807.0,0.0926]
[1769889230235,0.3,77828.0,77795.0,0.012872]
[1769889230443,0.3,77821.0,77798.0,0.012872]
[1769889230737,0.0926,77822.0,77795.0,0.012872]
[1769889230930,0.00010835,77821.0,77795.0,0.012872]
[1769889231238,0.001,77828.0,77809.0,0.01287]
[1769889231640,0.00010835,77827.0,77809.0,0.01287]
[1769889232646,0.012866,77835.0,77809.0,0.01287]
[1769889232946,0.14147932,77835.0,77809.0,0.01287]
[1769889233443,0.12861332,77835.0,77811.0,0.01287]
[1769889233741,0.012866,77833.0,77807.0,0.0926]
[1769889234038,0.00010835,77835.0,77811.0,0.01287]
[1769889234246,0.00010835,77835.0,77810.0,0.01287]
[1769889234446,0.00010835,77835.0,77809.0,0.01287]
[1769889234638,0.0926,77840.0,77807.0,0.0926]
[1769889234639,0.08957335,77840.0,77807.0,0.0926]
[1769889234840,0.3,77839.0,77807.0,0.0926]
[1769889235043,0.3,77833.0,77807.0,0.0926]
[1769889235444,0.3,77833.0,77808.0,0.01287]
[1769889236147,0.3,77833.0,77807.0,0.0926]
[1769889237545,0.42841335,77840.0,77807.0,0.0926]
[1769889237744,0.012866,77833.0,77807.0,0.0926]
[1769889237947,0.012867,77831.0,77807.0,0.0926]
[1769889238145,0.012866,77832.0,77807.0,0.0926]
[1769889238444,0.012866,77832.0,77808.0,0.01287]
[1769889238838,0.001,77833.0,77808.0,0.01287]
[1769889239244,0.013866,77833.0,77808.0,0.01287]
[1769889239547,0.001,77833.0,77807.0,0.0926]
[1769889240342,0.001,77832.0,77807.0,0.0926]
[1769889241044,0.012867,77831.0,77808.0,0.01287]
[1769889241246,0.012867,77831.0,77807.0,0.0926]
[1769889241446,0.312867,77831.0,77807.0,0.0926]
[1769889241645,0.012867,77829.0,77807.0,0.10547]
[1769889241848,0.012867,77828.0,77807.0,0.0936]
[1769889242442,0.012867,77830.0,77807.0,0.0936]
[1769889242638,0.012867,77830.0,77809.0,0.01287]
[1769889242947,0.3,77839.0,77807.0,0.0936]
[1769889243249,0.3,77837.0,77807.0,0.0936]
[1769889243447,0.012867,77829.0,77807.0,0.10647]
[1769889243948,0.012867,77829.0,77807.0,0.10547]
[1769889244147,0.3151628,77872.0,77807.0,0.10547]
[1769889244148,0.09264,77854.0,77822.0,0.012868]
[1769889244446,0.3,77848.0,77823.0,0.09264]
[1769889244643,0.3,77845.0,77819.0,0.012868]
[1769889244842,0.312865,77843.0,77821.0,0.012868]
[1769889245042,0.312865,77843.0,77818.0,0.012869]
[1769889245348,0.312866,77832.0,77814.0,0.09264]
[1769889245744,0.012868,77825.0,77814.0,0.09264]
[1769889245942,0.3,77832.0,77814.0,0.09264]
[1769889246149,0.012867,77827.0,77814.0,0.09264]
[1769889246344,0.012868,77825.0,77814.0,0.09264]
[1769889246742,0.3,77820.0,77804.0,0.005]
[1769889247049,0.27187,77815.0,77798.0,0.09264]
[1769889247254,0.01287,77811.0,77798.0,0.09264]
[1769889247448,0.012869,77814.0,77798.0,0.09264]
[1769889247644,0.01287,77812.0,77798.0,0.09264]
[1769889247849,0.01287,77810.0,77798.0,0.09264]
[1769889248143,0.01287,77810.0,77790.0,0.012873]
[1769889248353,0.01287,77813.0,77792.0,0.012873]
[1769889248542,0.12778945,77812.0,77792.0,0.012873]
[1769889248856,0.12778945,77812.0,77789.0,0.012873]
[1769889248857,0.01287,77811.0,77789.0,0.012873]
[1769889249042,0.3,77810.0,77789.0,0.012873]
[1769889249242,0.09264,77819.0,77783.0,0.005]
[1769889249243,0.012871,77802.0,77783.0,0.005]
[1769889249445,0.012871,77802.0,77765.0,0.012877]
[1769889249446,0.01287,77808.0,77784.0,0.012874]
[1769889249949,0.012871,77805.0,77782.0,0.09273548]
[1769889250348,0.01287,77809.0,77782.0,0.09273548]
[1769889250749,0.14141231,77806.0,77782.0,0.09273548]
[1769889250950,0.01387,77810.0,77784.0,0.012874]
[1769889251146,0.01287,77808.0,77784.0,0.012874]
[1769889251347,0.12854213,77805.0,77784.0,0.012874]
[1769889251646,0.01287,77812.0,77786.0,0.012874]
[1769889251849,0.12775514,77811.0,77786.0,0.012874]
[1769889252050,0.12854379,77807.0,77782.0,0.10560948]
[1769889252250,0.312871,77806.0,77782.0,9.548e-05]
[1769889252448,0.09264,77819.0,77782.0,9.548e-05]
[1769889252449,0.12854379,77809.0,77782.0,9.548e-05]
[1769889252655,0.012871,77804.0,77782.0,9.548e-05]
[1769889253549,0.012871,77807.0,77782.0,9.548e-05]
[1769889253754,0.09264,77819.0,77790.0,0.012873]
[1769889254053,0.12854627,77815.0,77790.0,0.012873]
[1769889254255,0.12799032,77814.0,77786.0,0.012874]
[1769889254450,0.12854627,77814.0,77786.0,0.012874]
[1769889254650,0.012869,77813.0,77786.0,0.012874]
[1769889255350,0.3,77811.0,77782.0,9.548e-05]
[1769889255549,0.01287,77808.0,77782.0,9.548e-05]
[1769889255957,0.012869,77817.0,77788.0,0.012873]
[1769889256159,0.12798263,77816.0,77790.0,0.012873]
[1769889256455,0.12854048,77818.0,77790.0,0.28173735]
[1769889256753,0.39264,77819.0,77790.0,0.28173735]
[1769889256959,0.12852809,77817.0,77795.0,0.012872]
[1769889257157,0.09264,77819.0,77796.0,0.09264]
[1769889258853,0.09264,77819.0,77796.0,0.105512]
[1769889259259,0.04964,77819.0,77796.0,0.105512]
[1769889259461,0.04964,77819.0,77796.0,0.09264]
[1769889260152,0.3,77816.0,77796.0,0.09264]
[1769889260357,0.3,77814.0,77796.0,0.09264]
[1769889260758,0.01287,77810.0,77796.0,0.09264]
[1769889261056,0.3,77812.0,77796.0,0.09264]
[1769889261255,0.012869,77814.0,77796.0,0.09264]
[1769889261456,0.31287,77812.0,77787.0,0.012874]
[1769889261656,0.3,77807.0,77783.0,0.088774]
[1769889261857,0.3,77807.0,77785.0,0.012874]
[1769889262460,0.012869,77813.0,77787.0,0.012874]
[1769889262759,0.14140453,77813.0,77787.0,0.012874]
[1769889262971,0.12853553,77813.0,77783.0,0.16854]
[1769889263164,0.001,77814.0,77789.0,0.012873]
[1769889263459,0.3,77810.0,77786.0,0.012874]
[1769889263850,0.01287,77809.0,77783.0,0.16854]
[1769889264057,0.3,77810.0,77783.0,0.16854]
[1769889264359,0.3,77810.0,77787.0,0.012874]
[1769889264759,0.31287,77810.0,77787.0,0.012874]
[1769889264960,0.01287,77808.0,77784.0,0.012874]
[1769889266068,0.012871,77806.0,77783.0,0.09264]
[1769889266267,0.269,77810.0,77783.0,0.09264]
[1769889266568,0.012871,77807.0,77783.0,0.09264]
[1769889267066,0.269,77810.0,77783.0,0.09264]
[1769889267267,0.01287,77808.0,77785.0,0.012874]
[1769889267468,0.012871,77806.0,77783.0,0.09264]
[1769889267668,0.012867,77830.0,77784.0,0.012874]
[1769889267871,0.14594848,77829.0,77793.0,0.012873]
[1769889268066,0.012869,77818.0,77795.0,0.012872]
[1769889268371,0.001,77810.0,77795.0,0.012872]
[1769889268761,0.001,77810.0,77797.0,0.012872]
[1769889269167,0.012868,77821.0,77787.0,0.012874]
[1769889269460,0.012868,77821.0,77788.0,0.012874]
[1769889269665,0.012869,77819.0,77796.0,0.012872]
[1769889269860,0.012869,77817.0,77796.0,0.012872]
[1769889270260,0.012868,77820.0,77798.0,0.012872]
[1769889270466,0.001,77829.0,77800.0,0.012872]
[1769889270467,0.012868,77823.0,77800.0,0.012872]
[1769889270666,0.312868,77821.0,77800.0,0.012872]
[1769889270860,0.012869,77819.0,77798.0,0.012872]
[1769889271164,0.312869,77819.0,77798.0,0.012872]
[1769889271566,0.31178385,77816.0,77797.0,0.09264]
[1769889271966,0.001,77823.0,77797.0,0.09264]
[1769889271967,0.29891485,77813.0,77797.0,0.09264]
[1769889272370,0.29891485,77821.0,77797.0,0.09264]
[1769889272569,0.012868,77825.0,77797.0,0.09264]
[1769889272771,0.12852066,77822.0,77797.0,0.09264]
[1769889272970,0.31178285,77825.0,77797.0,0.09264]
[1769889273173,0.13120619,77824.0,77807.0,0.01287]
[1769889273473,0.55864087,77823.0,77797.0,0.09264]
[1769889273769,0.13120619,77822.0,77797.0,0.09264]
[1769889273972,0.25972602,77822.0,77804.0,0.012871]
[1769889274276,0.13120619,77821.0,77804.0,0.012871]
[1769889274571,0.29891485,77823.0,77804.0,0.012871]
[1769889274766,0.001,77813.0,77801.0,0.012871]
[1769889274973,0.001,77813.0,77805.0,0.012871]
[1769889275272,0.001,77813.0,77802.0,0.012871]
[1769889275476,0.14138205,77822.0,77802.0,0.012871]
[1769889275674,0.13205309,77821.0,77802.0,0.012871]
[1769889275875,0.13105309,77820.0,77802.0,0.012871]
[1769889276066,0.13105309,77819.0,77802.0,0.012871]
[1769889276271,0.001,77821.0,77797.0,0.105512]
[1769889276576,0.13107619,77820.0,77806.0,0.012871]
[1769889276775,0.001,77821.0,77806.0,0.012871]
[1769889277166,0.09264,77837.0,77816.0,0.012869]
[1769889277370,0.12908216,77836.0,77816.0,0.012869]
[1769889277571,0.12908216,77835.0,77816.0,0.012869]
[1769889277771,0.12908216,77834.0,77816.0,0.012869]
[1769889277981,0.12908216,77833.0,77818.0,0.012869]
[1769889278176,0.012866,77836.0,77818.0,0.012869]
[1769889278482,0.2280768,77835.0,77818.0,0.012869]
[1769889278667,0.012866,77836.0,77818.0,0.012869]
[1769889279078,0.12849093,77835.0,77818.0,0.012869]
[1769889279678,0.42849093,77835.0,77818.0,0.012869]
[1769889279877,0.3,77834.0,77815.0,0.012869]
[1769889280076,0.3,77831.0,77815.0,0.012869]
[1769889280271,0.3,77831.0,77804.0,0.012871]
[1769889280475,0.3,77829.0,77804.0,0.012871]
[1769889280774,0.3,77829.0,77802.0,0.005]
[1769889280775,0.3,77820.0,77802.0,0.005]
[1769889280979,0.3,77818.0,77797.0,0.012872]
[1769889281175,0.3,77816.0,77793.0,0.005]
[1769889281474,0.3,77816.0,77789.0,0.012873]
[1769889281678,0.3,77816.0,77790.0,0.012873]
[1769889281873,0.3,77816.0,77786.0,0.005]
[1769889282078,0.3,77816.0,77794.0,0.012872]
[1769889282386,0.3,77816.0,77793.0,0.012873]
[1769889282681,0.3,77816.0,77795.0,0.012872]
[1769889283281,0.312869,77816.0,77795.0,0.012872]
[1769889283483,0.3,77810.0,77791.0,0.09264]
[1769889283673,0.3,77818.0,77791.0,0.09264]
[1769889283877,0.312869,77817.0,77793.0,0.012873]
[1769889284079,0.312869,77817.0,77795.0,0.012872]
[1769889284481,0.312869,77817.0,77791.0,0.09264]
[1769889284482,0.3,77817.0,77791.0,0.09264]
[1769889284677,0.3,77813.0,77791.0,0.09264]
[1769889285179,0.3,77846.0,77822.0,0.012868]
[1769889285380,0.005,77841.0,77822.0,0.012868]
[1769889285575,0.305,77841.0,77822.0,0.012868]
[1769889285776,0.3,77838.0,77815.0,0.09264]
[1769889285983,0.3,77838.0,77820.0,0.012868]
[1769889286185,0.3,77838.0,77817.0,0.012869]
[1769889286384,0.3,77834.0,77815.0,0.09264]
[1769889286581,0.3,77832.0,77815.0,0.09264]
[1769889286884,0.312866,77832.0,77815.0,0.09264]
[1769889287082,0.3,77832.0,77816.0,0.012869]
[1769889288284,0.3,77832.0,77818.0,0.012869]
[1769889288487,0.3,77832.0,77815.0,0.09264]
[1769889288978,0.3,77832.0,77817.0,0.012869]
[1769889289178,0.301,77832.0,77816.0,0.012869]
[1769889289577,0.301,77832.0,77818.0,0.012869]
[1769889289980,0.301,77832.0,77815.0,0.09264]
[1769889290386,0.301,77832.0,77818.0,0.012869]
[1769889290585,0.238,77832.0,77818.0,0.012869]
[1769889290787,0.237,77832.0,77818.0,0.012869]
[1769889290989,0.237,77832.0,77820.0,0.012868]
[1769889291488,0.237,77832.0,77815.0,0.09264]
[1769889291489,0.09264,77846.0,77815.0,0.105509]
[1769889291787,0.25753331,77845.0,77829.0,0.012867]
[1769889291988,0.1290399,77844.0,77829.0,0.012867]
[1769889292589,0.09264,77846.0,77835.0,0.012866]
[1769889293689,0.09264,77846.0,77832.0,0.012866]
[1769889293889,0.09264,77846.0,77819.0,0.012868]
[1769889294089,0.09264,77846.0,77830.0,0.012867]
[1769889294290,0.3,77845.0,77830.0,0.012867]
[1769889294484,0.3,77845.0,77815.0,0.09264]
[1769889294692,0.001,77844.0,77832.0,0.012866]
[1769889295393,0.001,77844.0,77815.0,0.09264]
[1769889295394,0.312864,77844.0,77815.0,0.09264]
[1769889295595,0.3,77842.0,77815.0,0.09264]
[1769889295790,0.3,77840.0,77821.0,0.012868]
[1769889296093,0.3,77838.0,77820.0,0.012868]
[1769889296291,0.3,77838.0,77822.0,0.012868]
[1769889296491,0.012865,77842.0,77822.0,0.012868]
[1769889296687,0.744384,77845.0,77824.0,0.012868]
[1769889296902,0.12847076,77844.0,77824.0,0.012868]
[1769889297090,0.42830288,77843.0,77821.0,0.012868]
[1769889297292,0.3,77841.0,77821.0,0.012868]
[1769889297792,0.254865,77839.0,77818.0,0.012869]
[1769889298296,0.012866,77837.0,77818.0,0.012869]
[1769889298494,0.012865,77843.0,77816.0,0.09264]
[1769889298688,0.12817261,77842.0,77816.0,0.09264]
[1769889298894,0.12817261,77841.0,77825.0,0.012867]
[1769889299196,0.012865,77842.0,77816.0,0.09264]
[1769889299391,0.001,77841.0,77822.0,0.012868]
[1769889299698,0.012866,77837.0,77818.0,0.012869]
[1769889299901,0.29921444,77836.0,77816.0,0.09264]
[1769889300292,0.29921444,77836.0,77817.0,0.012869]
[1769889300792,0.29921444,77836.0,77820.0,0.012868]
[1769889301191,0.43152,77845.0,77826.0,0.012867]
[1769889301399,0.012862,77857.0,77836.0,0.012866]
[1769889301600,0.29902513,77852.0,77833.0,0.012866]
[1769889301797,0.29902513,77850.0,77830.0,0.012867]
[1769889302299,0.012863,77851.0,77817.0,0.09264]
[1769889302300,0.29902513,77846.0,77827.0,0.012867]
[1769889302502,0.29902513,77846.0,77817.0,0.09264]
[1769889302700,0.29902513,77842.0,77824.0,0.012868]
[1769889303099,0.29902513,77842.0,77826.0,0.012867]
[1769889303300,0.012864,77849.0,77826.0,0.012867]
[1769889303503,0.012864,77847.0,77826.0,0.012867]
[1769889303803,0.29912132,77847.0,77828.0,0.012867]
[1769889304193,0.12847443,77846.0,77828.0,0.012867]
[1769889304397,0.29912132,77845.0,77828.0,0.012867]
[1769889304999,0.09264,77848.0,77819.0,0.012868]
[1769889305295,0.012865,77842.0,77821.0,0.012868]
[1769889305698,0.012865,77842.0,77823.0,0.012868]
[1769889306000,0.012865,77843.0,77822.0,0.012868]
[1769889306199,0.012865,77843.0,77824.0,0.012868]
[1769889307004,0.27864365,77842.0,77824.0,0.012868]
[1769889307205,0.27864365,77841.0,77824.0,0.012868]
[1769889307801,0.27864365,77841.0,77817.0,0.09264]
[1769889308099,0.001,77843.0,77829.0,0.012867]
[1769889308303,0.001,77843.0,77826.0,0.012867]
[1769889308704,0.2787469,77843.0,77824.0,0.012867]
[1769889308906,0.12848103,77842.0,77826.0,0.012867]
[1769889309308,0.2777469,77841.0,77823.0,0.012868]
[1769889309601,0.2777469,77841.0,77825.0,0.012867]
[1769889309906,0.2777469,77841.0,77822.0,0.012868]
[1769889310102,0.2777469,77841.0,77824.0,0.012868]
[1769889310304,0.2783962,77839.0,77824.0,0.012868]
[1769889310604,0.2783962,77839.0,77823.0,0.012868]
[1769889311507,0.2783962,77839.0,77812.0,0.01287]
[1769889311701,0.2783962,77839.0,77822.0,0.012868]
[1769889312097,0.2493962,77839.0,77823.0,0.012868]
[1769889314099,0.14158602,77838.0,77823.0,0.012868]
[1769889314300,0.2493962,77839.0,77826.0,0.012867]
[1769889314804,0.012863,77850.0,77819.0,0.10633597]
[1769889315004,0.001,77839.0,77819.0,0.10633597]
[1769889315211,0.12848103,77847.0,77819.0,0.10633597]
[1769889315404,0.14156076,77846.0,77821.0,0.10633597]
[1769889315711,0.14156076,77845.0,77829.0,0.012867]
[1769889315901,0.14156076,77844.0,77826.0,0.012867]
[1769889316209,0.14156076,77843.0,77821.0,0.10633597]
[1769889316407,0.001,77850.0,77831.0,0.012866]
[1769889316610,0.14152873,77849.0,77832.0,0.012866]
[1769889316802,0.14152873,77848.0,77832.0,0.012866]
[1769889317008,0.14152873,77847.0,77832.0,0.012866]
[1769889317204,0.012862,77859.0,77830.0,0.10977184]
[1769889317505,0.27548029,77860.0,77839.0,0.012865]
[1769889317899,0.27548029,77860.0,77831.0,0.09264]
[1769889317900,0.27548029,77860.0,77836.0,0.10859836]
[1769889318104,0.27548029,77860.0,77840.0,0.012865]
[1769889318409,0.33884,77865.0,77831.0,0.09264]
[1769889318410,0.27548029,77853.0,77831.0,0.09264]
[1769889318607,0.27548029,77853.0,77831.0,0.105506]
[1769889318809,0.28834329,77853.0,77831.0,0.012866]
[1769889319212,0.25034329,77853.0,77830.0,0.012867]
[1769889319813,0.25034329,77853.0,77832.0,0.012866]
[1769889320413,0.23748029,77853.0,77832.0,0.012866]
[1769889320613,0.012863,77853.0,77831.0,0.012866]
[1769889320912,0.012863,77851.0,77831.0,0.012866]
[1769889321313,0.27548029,77850.0,77831.0,0.012866]
[1769889322310,0.27548029,77850.0,77827.0,0.0926]
[1769889322810,0.27548029,77850.0,77833.0,0.012866]
[1769889323412,0.27548029,77850.0,77827.0,0.0926]
[1769889324618,0.27548029,77850.0,77831.0,0.012866]
[1769889325013,0.27548029,77850.0,77829.0,0.012867]
[1769889325215,0.27548029,77850.0,77827.0,0.0926]
[1769889325415,0.27548029,77837.0,77812.0,0.0926]
[1769889325616,0.27548029,77837.0,77818.0,0.012869]
[1769889326218,0.27548029,77837.0,77820.0,0.012868]
[1769889326418,0.24748029,77837.0,77820.0,0.012868]
[1769889326615,0.012863,77851.0,77828.0,0.012867]
[1769889326820,0.09264,77854.0,77832.0,0.012866]
[1769889327017,0.005,77864.0,77832.0,0.17517267]
[1769889327219,0.005,77871.0,77849.0,0.17517267]
[1769889327523,0.12846947,77876.0,77850.0,0.17517267]
[1769889327823,0.012858,77883.0,77850.0,0.17517267]
[1769889328122,0.1284307,77882.0,77861.0,0.012861]
[1769889328424,0.61428029,77884.0,77860.0,0.012862]
[1769889328617,0.27548029,77884.0,77866.0,0.012861]
[1769889329422,0.001,77882.0,77866.0,0.012861]
[1769889330020,0.0926,77885.0,77860.0,0.42778932]
[1769889330322,0.0926,77885.0,77867.0,0.01286]
[1769889331325,0.0926,77885.0,77869.0,0.01286]
[1769889331525,0.0926,77885.0,77864.0,0.0926]
[1769889332023,0.0926,77885.0,77868.0,0.01286]
[1769889332524,0.0926,77885.0,77864.0,0.0926]
[1769889332525,0.36808029,77885.0,77870.0,0.01286]
[1769889332725,0.27548029,77884.0,77870.0,0.01286]
[1769889332923,0.27548029,77884.0,77867.0,0.01286]
[1769889333122,0.27548029,77884.0,77869.0,0.01286]